[Event "EYCC Girls-U18 2019"]
[Site "Bratislava"]
[Date "2019.08.10"]
[Round "9.7"]
[White "Beydullayeva, Govhar"]
[Black "Gajcin, Marina"]
[Result "0-1"]
[ECO "D02"]
[WhiteElo "2282"]
[BlackElo "2267"]
[Annotator "NA"]
[PlyCount "122"]
[EventDate "2019.08.02"]
[EventType "swiss"]
[EventCountry "SVK"]
[SourceTitle "playchess.com"]
[Source "ChessBase"]
[SourceQuality "1"]
[TimeControl "40/5400+30:1800+30"]

1. Nf3 {[%emt 0:00:00]} d5 {[%emt 0:00:00]} 2. d4 {[%emt 0:00:00]} Nf6 {[%emt 0:00:00]} 3. c4 {[%emt 0:00:00]} g6 {[%emt 0:00:41]} 4. cxd5 {[%emt 0:05:06]} Nxd5 {[%emt 0:04:36]} 5. e4 {[%emt 0:00:36]} Nb6 {[%emt 0:00:27]} 6. h3 {[%emt 0:05:58]} Bg7 {[%emt 0:00:50]} 7. Nc3 {[%emt 0:00:23]} O-O {[%emt 0:02:15]} 8. Be3 {[%emt 0:02:43]} Nc6 {[%emt 0:03:25]} 9. d5 {[%emt 0:03:00]} Ne5 {[%emt 0:06:55]} 10. Nxe5 {[%emt 0:16:55]} Bxe5 {[%emt 0:00:09]} 11. Bh6 {[%emt 0:09:20]} Re8 {[%emt 0:07:41]} 12. Bb5 {[%emt 0:06:32]} Bd7 {[%emt 0:03:13]} 13. Bxd7 {[%emt 0:02:00]} Qxd7 {[%emt 0:01:03]} 14. f4 {[%emt 0:01:33]} Bxc3+ {[%emt 0:16:52]} 15. bxc3 {[%emt 0:00:01]} Qb5 {[%emt 0:01:24]} 16. Qd4 {[%emt 0:15:21]} f6 {[%emt 0:00:14]} 17. f5 {[%emt 0:13:41]} c6 {[%emt 0:10:14]} 18. a4 {[%emt 0:05:49]} Qc4 {[%emt 0:02:13]} 19. dxc6 {[%emt 0:06:19]} bxc6 {[%emt 0:02:44]} 20. Be3 {[%emt 0:01:27]} Red8 {[%emt 0:06:29]} 21. Qxc4+ {[%emt 0:00:45]} Nxc4 {[%emt 0:00:02]} 22. Ke2 {[%emt 0:01:03]} gxf5 {[%emt 0:00:54]} 23. Rhd1 {[%emt 0:02:14]} fxe4 {[%emt 0:08:59]} 24. Rxd8+ {[%emt 0:00:04]} Rxd8 {[%emt 0:00:02]} 25. Bxa7 {[%emt 0:00:05]} Kf7 {[%emt 0:02:39]} 26. a5 {[%emt 0:01:22]} Ra8 {[%emt 0:00:49]} 27. Ra4 {[%emt 0:00:05]} Nb2 {[%emt 0:01:00]} 28. Rxe4 {[%emt 0:00:43]} Rxa7 {[%emt 0:00:24]} 29. Rb4 {[%emt 0:00:03]} Rxa5 {[%emt 0:01:27]} 30. Rxb2 {[%emt 0:00:01]} Rg5 {[%emt 0:02:56]} 31. Kf3 {[%emt 0:01:09]} h5 {[%emt 0:01:20]} 32. g3 {[%emt 0:00:32]} Ke6 {[%emt 0:00:37]} 33. Rd2 {[%emt 0:00:53]} Rc5 {[%emt 0:00:45]} 34. Rd3 {[%emt 0:00:10]} Kf5 {[%emt 0:00:31]} 35. Ke2 {[%emt 0:00:48]} e5 {[%emt 0:00:52]} 36. Rf3+ {[%emt 0:00:10]} Ke6 {[%emt 0:00:21]} 37. g4 {[%emt 0:00:32]} hxg4 38. hxg4 {[%emt 0:00:01]} Rc4 {[%emt 0:02:02]} 39. Rg3 {[%emt 0:00:02]} c5 {[%emt 0:07:32]} 40. Kd3 {[%emt 0:00:00]} Rf4 {[%emt 0:00:00]} 41. Rg1 {[%emt 0:05:02]} Kd5 {[%emt 0:07:04]} 42. Ke3 {[%emt 0:08:56]} Ra4 {[%emt 0:02:08]} 43. g5 {[%emt 0:02:36]} fxg5 {[%emt 0:01:12]} 44. Rxg5 {[%emt 0:00:01]} Rh4 {[%emt 0:01:31]} 45. Kd3 {[%emt 0:06:52]} Rh3+ {[%emt 0:02:12]} 46. Kd2 {[%emt 0:01:14]} Rf3 {[%emt 0:03:38]} 47. Rg8 {[%emt 0:04:16]} Kc4 {[%emt 0:01:50]} 48. Rg4+ {[%emt 0:00:59]} Rf4 {[%emt 0:00:23]} 49. Rg5 {[%emt 0:01:37]} e4 {[%emt 0:06:47]} 50. Re5 {[%emt 0:02:18]} Rh4 {[%emt 0:01:54]} 51. Ke2 {[%emt 0:03:06]} Rh2+ {[%emt 0:00:58]} 52. Kd1 {[%emt 0:00:32]} Rh3 {[%emt 0:02:33]} 53. Rxe4+ {[%emt 0:00:59]} Kd3 {[%emt 0:00:27]} 54. Re1 {[%emt 0:00:12]} c4 {[%emt 0:01:02]} 55. Kc1 {[%emt 0:00:46]} Kxc3 {[%emt 0:00:10]} 56. Rg1 {[%emt 0:00:14]} Kb3 {[%emt 0:00:46]} 57. Rg8 {[%emt 0:00:27]} Rh1+ {[%emt 0:00:23]} 58. Kd2 {[%emt 0:00:01]} c3+ {[%emt 0:00:19]} 59. Kd3 {[%emt 0:00:37]} Rd1+ {[%emt 0:00:05]} 60. Ke2 {[%emt 0:00:02]} c2 {[%emt 0:00:20]} 61. Rb8+ {[%emt 0:00:33]} Ka4 {[%emt 0:00:10]} 0-1

[Event "EYCC Girls-U18 2019"]
[Site "Bratislava"]
[Date "2019.08.10"]
[Round "9.8"]
[White "Antova, Gabriela"]
[Black "Poliakova, Varvara"]
[Result "1-0"]
[ECO "A86"]
[WhiteElo "2257"]
[BlackElo "1872"]
[Annotator "NA"]
[PlyCount "71"]
[EventDate "2019.08.02"]
[EventType "swiss"]
[EventCountry "SVK"]
[SourceTitle "playchess.com"]
[Source "ChessBase"]
[SourceQuality "1"]
[TimeControl "40/5400+30:1800+30"]

1. d4 {[%emt 0:00:00]} f5 {[%emt 0:00:00]} 2. c4 {[%emt 0:00:00]} Nf6 {[%emt 0:00:00]} 3. g3 {[%emt 0:00:00]} g6 {[%emt 0:00:00]} 4. Bg2 {[%emt 0:00:14]} Bg7 {[%emt 0:00:13]} 5. Nh3 {[%emt 0:00:10]} d6 {[%emt 0:00:28]} 6. d5 {[%emt 0:03:27]} c6 {[%emt 0:01:22]} 7. Nc3 {[%emt 0:06:46]} O-O {[%emt 0:00:59]} 8. O-O {[%emt 0:00:34]} e5 {[%emt 0:01:27]} 9. dxe6 {[%emt 0:00:23]} Bxe6 {[%emt 0:02:08]} 10. Qb3 {[%emt 0:01:18]} Qc7 {[%emt 0:02:57]} 11. Ng5 {[%emt 0:00:26]} Bf7 {[%emt 0:00:06]} 12. Rd1 {[%emt 0:04:58]} Nbd7 {[%emt 0:01:18]} 13. Nxf7 {[%emt 0:21:08]} Rxf7 {[%emt 0:00:11]} 14. Qa3 {[%emt 0:00:48]} Ne5 {[%emt 0:03:26]} 15. b3 {[%emt 0:05:23]} Nfg4 {[%emt 0:08:32]} 16. Bd2 {[%emt 0:14:54]} Raf8 {[%emt 0:08:35]} 17. Qxa7 {[%emt 0:03:09]} Qe7 {[%emt 0:06:12]} 18. f4 {[%emt 0:06:32]} Nd7 {[%emt 0:01:34]} 19. h3 {[%emt 0:00:44]} Nc5 {[%emt 0:03:27]} 20. hxg4 {[%emt 0:03:49]} Bd4+ {[%emt 0:00:23]} 21. Kh2 {[%emt 0:03:55]} Nxb3 {[%emt 0:11:17]} 22. Qa3 {[%emt 0:00:26]} Nxa1 {[%emt 0:00:38]} 23. Rxa1 {[%emt 0:00:31]} fxg4 {[%emt 0:01:32]} 24. e3 {[%emt 0:03:19]} Bc5 {[%emt 0:01:20]} 25. Qb3 {[%emt 0:01:40]} g5 {[%emt 0:08:15]} 26. Ne4 {[%emt 0:01:45]} gxf4 {[%emt 0:00:12]} 27. exf4 {[%emt 0:01:05]} Rf5 {[%emt 0:01:53]} 28. Nxc5 {[%emt 0:01:19]} Rxc5 {[%emt 0:02:46]} 29. Re1 {[%emt 0:01:41]} Qf7 {[%emt 0:03:11]} 30. Bb4 {[%emt 0:02:23]} Rh5+ {[%emt 0:02:40]} 31. Kg1 {[%emt 0:00:01]} Qc7 {[%emt 0:02:10]} 32. Bxd6 {[%emt 0:01:05]} Qa5 {[%emt 0:02:39]} 33. c5+ {[%emt 0:04:36]} Rf7 {[%emt 0:00:09]} 34. Re8+ {[%emt 0:00:18]} Kg7 {[%emt 0:00:02]} 35. Be5+ {[%emt 0:00:39]} Rxe5 {[%emt 0:00:38]} 36. Rxe5 {[%emt 0:00:03]} 1-0

[Event "EYCC Girls-U18 2019"]
[Site "Bratislava"]
[Date "2019.08.10"]
[Round "9.9"]
[White "Grigoryan, Arpine"]
[Black "Hryshchenko, Kamila"]
[Result "1/2-1/2"]
[ECO "B09"]
[WhiteElo "1996"]
[BlackElo "2060"]
[Annotator "NA"]
[PlyCount "80"]
[EventDate "2019.08.02"]
[EventType "swiss"]
[EventCountry "SVK"]
[SourceTitle "playchess.com"]
[Source "ChessBase"]
[SourceQuality "1"]
[TimeControl "40/5400+30:1800+30"]

1. e4 {[%emt 0:00:00]} g6 {[%emt 0:00:00]} 2. d4 {[%emt 0:00:00]} Bg7 {[%emt 0:00:00]} 3. Nc3 {[%emt 0:00:07]} d6 {[%emt 0:00:06]} 4. f4 {[%emt 0:00:14]} Nf6 {[%emt 0:00:07]} 5. Nf3 {[%emt 0:00:04]} c5 {[%emt 0:00:59]} 6. Bb5+ {[%emt 0:01:46]} Bd7 {[%emt 0:00:06]} 7. Bxd7+ {[%emt 0:01:05]} Nfxd7 {[%emt 0:02:38]} 8. d5 {[%emt 0:05:20]} O-O {[%emt 0:05:55]} 9. O-O {[%emt 0:01:05]} Na6 {[%emt 0:02:46]} 10. Qe2 {[%emt 0:06:16]} Nc7 {[%emt 0:21:01]} 11. e5 {[%emt 0:04:18]} dxe5 {[%emt 0:01:16]} 12. fxe5 {[%emt 0:00:05]} b5 {[%emt 0:01:08]} 13. d6 {[%emt 0:05:05]} exd6 {[%emt 0:03:10]} 14. exd6 {[%emt 0:00:05]} Ne6 {[%emt 0:03:19]} 15. Qxb5 {[%emt 0:04:10]} Ne5 {[%emt 0:03:06]} 16. Be3 {[%emt 0:04:43]} a6 {[%emt 0:08:05]} 17. Qe2 {[%emt 0:01:34]} Qxd6 {[%emt 0:00:45]} 18. Rad1 {[%emt 0:01:49]} Nxf3+ {[%emt 0:01:58]} 19. Qxf3 {[%emt 0:00:07]} Nd4 {[%emt 0:00:35]} 20. Qf2 {[%emt 0:00:19]} Qe6 {[%emt 0:03:34]} 21. Na4 {[%emt 0:02:56]} Rae8 {[%emt 0:07:38]} 22. Rd3 {[%emt 0:06:07]} Qc4 {[%emt 0:12:03]} 23. Nb6 {[%emt 0:07:23]} Qb5 {[%emt 0:04:42]} 24. Nd5 {[%emt 0:02:16]} Qc4 {[%emt 0:01:02]} 25. Nf6+ {[%emt 0:01:24]} Bxf6 {[%emt 0:00:15]} 26. Qxf6 {[%emt 0:00:05]} Re6 {[%emt 0:02:02]} 27. Qf2 {[%emt 0:00:58]} Rc6 {[%emt 0:03:18]} 28. b3 {[%emt 0:05:59]} Qxc2 {[%emt 0:01:45]} 29. Rd2 {[%emt 0:00:04]} Qf5 {[%emt 0:03:41]} 30. Bxd4 {[%emt 0:00:09]} cxd4 {[%emt 0:00:06]} 31. Qxf5 {[%emt 0:00:09]} gxf5 {[%emt 0:00:03]} 32. Rxf5 {[%emt 0:00:08]} Re8 {[%emt 0:03:29]} 33. Rxd4 {[%emt 0:01:03]} Rc2 {[%emt 0:00:08]} 34. Rg4+ {[%emt 0:02:09]} Kf8 {[%emt 0:00:17]} 35. Rgf4 {[%emt 0:00:50]} Re1+ {[%emt 0:00:13]} 36. Rf1 {[%emt 0:00:06]} Rxf1+ {[%emt 0:00:04]} 37. Rxf1 {[%emt 0:00:51]} Rxa2 {[%emt 0:00:05]} 38. h4 {[%emt 0:00:23]} Kg7 {[%emt 0:01:04]} 39. Kh2 {[%emt 0:00:05]} a5 {[%emt 0:00:13]} 40. Kg3 {[%emt 0:00:00]} a4 {[%emt 0:00:00]} 1/2-1/2

[Event "EYCC Girls-U18 2019"]
[Site "Bratislava"]
[Date "2019.08.10"]
[Round "9.10"]
[White "Swiech, Joanna"]
[Black "Kulpa, Zuzanna"]
[Result "1-0"]
[ECO "E32"]
[WhiteElo "2025"]
[BlackElo "1802"]
[Annotator "NA"]
[PlyCount "69"]
[EventDate "2019.08.02"]
[EventType "swiss"]
[EventCountry "SVK"]
[SourceTitle "playchess.com"]
[Source "ChessBase"]
[SourceQuality "1"]
[TimeControl "40/5400+30:1800+30"]

1. d4 {[%emt 0:00:00]} Nf6 {[%emt 0:00:00]} 2. c4 {[%emt 0:00:00]} e6 {[%emt 0:00:00]} 3. Nc3 {[%emt 0:00:05]} Bb4 {[%emt 0:00:00]} 4. Qc2 {[%emt 0:00:24]} O-O {[%emt 0:00:09]} 5. Bg5 {[%emt 0:00:34]} h6 {[%emt 0:06:18]} 6. Bh4 {[%emt 0:00:12]} d6 {[%emt 0:00:54]} 7. e3 {[%emt 0:03:32]} b6 {[%emt 0:03:49]} 8. Bd3 {[%emt 0:01:13]} Bb7 {[%emt 0:00:35]} 9. f3 {[%emt 0:00:53]} Nbd7 {[%emt 0:01:15]} 10. Nge2 {[%emt 0:01:11]} Qe7 {[%emt 0:04:11]} 11. O-O {[%emt 0:01:37]} Bxc3 {[%emt 0:00:25]} 12. bxc3 {[%emt 0:03:46]} e5 {[%emt 0:03:33]} 13. e4 {[%emt 0:00:44]} Rfe8 {[%emt 0:04:00]} 14. Qd2 {[%emt 0:04:55]} Nf8 {[%emt 0:02:28]} 15. Ng3 {[%emt 0:05:15]} Bc8 {[%emt 0:02:57]} 16. Nh5 {[%emt 0:17:20]} N8h7 {[%emt 0:03:00]} 17. f4 {[%emt 0:03:14]} exd4 {[%emt 0:10:38]} 18. e5 {[%emt 0:11:05]} dxe5 {[%emt 0:00:50]} 19. Bxh7+ {[%emt 0:00:38]} Kxh7 {[%emt 0:00:28]} 20. fxe5 {[%emt 0:00:57]} Ne4 {[%emt 0:16:03]} 21. Qe2 {[%emt 0:18:27]} Qxh4 {[%emt 0:06:41]} 22. Rf4 {[%emt 0:00:15]} Qg5 {[%emt 0:01:26]} 23. Qxe4+ {[%emt 0:01:05]} Kg8 {[%emt 0:02:55]} 24. Qxa8 {[%emt 0:03:02]} Qxh5 {[%emt 0:00:34]} 25. cxd4 {[%emt 0:00:40]} c5 {[%emt 0:01:52]} 26. Qc6 {[%emt 0:09:12]} Rf8 {[%emt 0:01:07]} 27. Qf3 {[%emt 0:05:39]} Qxf3 {[%emt 0:03:34]} 28. gxf3 {[%emt 0:00:11]} f5 {[%emt 0:03:47]} 29. exf6 {[%emt 0:00:19]} g5 {[%emt 0:00:21]} 30. Re4 {[%emt 0:00:41]} Bf5 {[%emt 0:00:20]} 31. Re5 {[%emt 0:00:20]} Rxf6 {[%emt 0:00:21]} 32. dxc5 {[%emt 0:00:29]} bxc5 {[%emt 0:00:04]} 33. Rxc5 {[%emt 0:00:09]} Bh3 {[%emt 0:00:47]} 34. Rc7 {[%emt 0:01:35]} a6 {[%emt 0:00:14]} 35. Rd1 {[%emt 0:00:56]} 1-0

[Event "EYCC Girls-U18 2019"]
[Site "Bratislava"]
[Date "2019.08.10"]
[Round "9.11"]
[White "Redondo Benavente, Ana"]
[Black "Nazarova, Anastasia"]
[Result "1-0"]
[ECO "B24"]
[WhiteElo "2176"]
[BlackElo "2149"]
[Annotator "NA"]
[PlyCount "57"]
[EventDate "2019.08.02"]
[EventType "swiss"]
[EventCountry "SVK"]
[SourceTitle "playchess.com"]
[Source "ChessBase"]
[SourceQuality "1"]
[TimeControl "40/5400+30:1800+30"]

1. e4 {[%emt 0:00:00]} c5 {[%emt 0:00:00]} 2. Nc3 {[%emt 0:00:00]} Nc6 {[%emt 0:00:00]} 3. Bb5 {[%emt 0:00:00]} Nd4 {[%emt 0:00:00]} 4. Nf3 {[%emt 0:00:00]} g6 {[%emt 0:02:52]} 5. Ba4 {[%emt 0:01:51]} Bg7 {[%emt 0:01:10]} 6. O-O {[%emt 0:01:34]} Qa5 {[%emt 0:03:46]} 7. Rb1 {[%emt 0:01:24]} Rb8 {[%emt 0:09:45]} 8. Nxd4 {[%emt 0:10:00]} cxd4 {[%emt 0:05:48]} 9. b4 {[%emt 0:00:06]} Qa6 {[%emt 0:03:45]} 10. Bb5 {[%emt 0:00:42]} Qe6 {[%emt 0:05:15]} 11. Nd5 {[%emt 0:02:47]} Qxe4 {[%emt 0:01:39]} 12. Bc4 {[%emt 0:00:41]} d6 {[%emt 0:17:58]} 13. Re1 {[%emt 0:09:32]} Qf5 {[%emt 0:00:18]} 14. d3 {[%emt 0:03:34]} Kf8 {[%emt 0:01:28]} 15. Re4 {[%emt 0:12:42]} e5 {[%emt 0:06:28]} 16. b5 {[%emt 0:10:43]} Qd7 {[%emt 0:14:11]} 17. Ba3 {[%emt 0:02:05]} Ne7 {[%emt 0:05:12]} 18. b6 {[%emt 0:07:39]} a6 {[%emt 0:00:13]} 19. f4 {[%emt 0:02:10]} Nxd5 {[%emt 0:07:56]} 20. Bxd5 {[%emt 0:02:29]} Qe7 {[%emt 0:06:01]} 21. Qe1 {[%emt 0:02:13]} f6 {[%emt 0:02:47]} 22. fxe5 {[%emt 0:01:22]} fxe5 {[%emt 0:00:09]} 23. Qb4 {[%emt 0:00:39]} Bf5 {[%emt 0:00:27]} 24. Qxd6 {[%emt 0:00:44]} Re8 {[%emt 0:00:23]} 25. Qc7 {[%emt 0:00:52]} Bxe4 {[%emt 0:00:14]} 26. Bxe7+ {[%emt 0:02:32]} Rxe7 {[%emt 0:00:04]} 27. Qd8+ {[%emt 0:00:09]} Re8 {[%emt 0:00:09]} 28. Qd6+ {[%emt 0:00:04]} Re7 {[%emt 0:00:11]} 29. dxe4 {[%emt 0:00:08]} 1-0

[Event "EYCC Girls-U18 2019"]
[Site "Bratislava"]
[Date "2019.08.10"]
[Round "9.12"]
[White "Ziegenfuss, Antonia"]
[Black "Cramling Bellon, Anna"]
[Result "0-1"]
[ECO "E20"]
[WhiteElo "2063"]
[BlackElo "2030"]
[Annotator "NA"]
[PlyCount "66"]
[EventDate "2019.08.02"]
[EventType "swiss"]
[EventCountry "SVK"]
[SourceTitle "playchess.com"]
[Source "ChessBase"]
[SourceQuality "1"]
[TimeControl "40/5400+30:1800+30"]

1. d4 {[%emt 0:00:00]} Nf6 {[%emt 0:00:00]} 2. c4 {[%emt 0:00:00]} e6 {[%emt 0:00:00]} 3. Nc3 {[%emt 0:00:00]} Bb4 {[%emt 0:00:00]} 4. f3 {[%emt 0:00:00]} c5 {[%emt 0:00:00]} 5. d5 {[%emt 0:00:00]} b5 {[%emt 0:00:03]} 6. e4 {[%emt 0:00:03]} bxc4 {[%emt 0:00:04]} 7. Bxc4 {[%emt 0:00:19]} Ba6 {[%emt 0:00:07]} 8. Bxa6 {[%emt 0:05:01]} Nxa6 {[%emt 0:00:05]} 9. Nge2 {[%emt 0:07:04]} O-O {[%emt 0:00:15]} 10. O-O {[%emt 0:00:58]} c4 {[%emt 0:00:37]} 11. Bg5 {[%emt 0:05:22]} Be7 {[%emt 0:03:08]} 12. Bxf6 {[%emt 0:12:35]} Bxf6 {[%emt 0:00:34]} 13. f4 {[%emt 0:01:07]} d6 {[%emt 0:13:00]} 14. Kh1 {[%emt 0:13:40]} Nc5 {[%emt 0:19:28]} 15. dxe6 {[%emt 0:15:08]} fxe6 {[%emt 0:00:25]} 16. f5 {[%emt 0:02:20]} Be5 {[%emt 0:29:55]} 17. fxe6 {[%emt 0:13:35]} Rxf1+ {[%emt 0:09:51]} 18. Qxf1 {[%emt 0:00:08]} Nxe6 {[%emt 0:00:03]} 19. Qf5 {[%emt 0:10:50]} Qd7 {[%emt 0:01:07]} 20. Rd1 {[%emt 0:02:50]} Rf8 {[%emt 0:03:19]} 21. Qh3 {[%emt 0:00:37]} Qf7 {[%emt 0:01:57]} 22. g3 {[%emt 0:01:08]} Nc5 {[%emt 0:03:28]} 23. Qg2 {[%emt 0:01:40]} Nd3 {[%emt 0:00:57]} 24. Rb1 {[%emt 0:01:38]} Qf2 {[%emt 0:05:22]} 25. Qxf2 {[%emt 0:00:47]} Rxf2 {[%emt 0:00:08]} 26. Kg1 {[%emt 0:01:44]} Bxc3 {[%emt 0:01:34]} 27. Nxc3 {[%emt 0:00:28]} Rc2 {[%emt 0:05:44]} 28. Nb5 {[%emt 0:02:47]} Ne5 {[%emt 0:01:53]} 29. Rf1 {[%emt 0:01:19]} Rxb2 {[%emt 0:00:05]} 30. Nxd6 {[%emt 0:00:09]} c3 {[%emt 0:00:50]} 31. Nf5 {[%emt 0:00:32]} h6 {[%emt 0:00:29]} 32. Ne3 {[%emt 0:00:54]} c2 {[%emt 0:00:30]} 33. a4 {[%emt 0:00:35]} Nf3+ {[%emt 0:00:44]} 0-1

[Event "EYCC Girls-U18 2019"]
[Site "Bratislava"]
[Date "2019.08.10"]
[Round "9.13"]
[White "Nilssen, Ellen Fredericia"]
[Black "Nastase, Andreea-Cristina"]
[Result "1-0"]
[ECO "D37"]
[WhiteElo "2155"]
[BlackElo "1948"]
[Annotator "NA"]
[PlyCount "39"]
[EventDate "2019.08.02"]
[EventType "swiss"]
[EventCountry "SVK"]
[SourceTitle "playchess.com"]
[Source "ChessBase"]
[SourceQuality "1"]
[TimeControl "40/5400+30:1800+30"]

1. d4 {[%emt 0:00:00]} Nf6 {[%emt 0:00:00]} 2. c4 {[%emt 0:00:00]} e6 {[%emt 0:00:00]} 3. Nf3 {[%emt 0:00:01]} d5 {[%emt 0:00:00]} 4. Nc3 {[%emt 0:00:20]} a6 {[%emt 0:00:00]} 5. cxd5 {[%emt 0:00:14]} exd5 {[%emt 0:00:00]} 6. Bg5 {[%emt 0:00:18]} c6 {[%emt 0:00:51]} 7. Qc2 {[%emt 0:01:03]} Bd6 {[%emt 0:04:03]} 8. Bxf6 {[%emt 0:03:38]} gxf6 {[%emt 0:00:46]} 9. e3 {[%emt 0:01:48]} Be6 {[%emt 0:02:48]} 10. Bd3 {[%emt 0:03:50]} Rg8 {[%emt 0:01:54]} 11. O-O-O {[%emt 0:09:16]} h5 {[%emt 0:02:19]} 12. e4 {[%emt 0:06:39]} Qc7 {[%emt 0:29:37]} 13. Rde1 {[%emt 0:10:45]} Nd7 {[%emt 0:07:14]} 14. exd5 {[%emt 0:00:53]} cxd5 {[%emt 0:00:03]} 15. Bf5 {[%emt 0:00:07]} Bf4+ {[%emt 0:01:09]} 16. Kb1 {[%emt 0:00:27]} Qd6 {[%emt 0:00:20]} 17. g3 {[%emt 0:03:01]} Bg5 {[%emt 0:04:21]} 18. h4 {[%emt 0:00:43]} Bh6 {[%emt 0:00:28]} 19. Bxe6 {[%emt 0:02:03]} fxe6 {[%emt 0:00:05]} 20. Qh7 {[%emt 0:00:04]} 1-0

[Event "EYCC Girls-U18 2019"]
[Site "Bratislava"]
[Date "2019.08.10"]
[Round "9.14"]
[White "Koridze, Lile"]
[Black "Rudzinska, Michalina"]
[Result "1-0"]
[ECO "A61"]
[WhiteElo "1950"]
[BlackElo "2143"]
[Annotator "NA"]
[PlyCount "85"]
[EventDate "2019.08.02"]
[EventType "swiss"]
[EventCountry "SVK"]
[SourceTitle "playchess.com"]
[Source "ChessBase"]
[SourceQuality "1"]
[TimeControl "40/5400+30:1800+30"]

1. d4 {[%emt 0:00:00]} Nf6 {[%emt 0:00:00]} 2. c4 {[%emt 0:00:00]} e6 {[%emt 0:00:00]} 3. Nf3 {[%emt 0:00:00]} c5 {[%emt 0:00:00]} 4. d5 {[%emt 0:00:00]} exd5 {[%emt 0:00:00]} 5. cxd5 {[%emt 0:00:00]} d6 {[%emt 0:00:01]} 6. Nc3 {[%emt 0:00:00]} g6 {[%emt 0:00:06]} 7. Nd2 {[%emt 0:00:00]} Bg7 {[%emt 0:04:06]} 8. Nc4 {[%emt 0:00:00]} O-O {[%emt 0:07:23]} 9. Bg5 {[%emt 0:00:01]} Qe7 {[%emt 0:05:15]} 10. e3 {[%emt 0:05:27]} h6 {[%emt 0:09:32]} 11. Bf4 {[%emt 0:01:00]} Ne8 {[%emt 0:00:06]} 12. Nb5 {[%emt 0:09:14]} g5 {[%emt 0:01:29]} 13. Bxd6 {[%emt 0:02:19]} Nxd6 {[%emt 0:00:06]} 14. Nbxd6 {[%emt 0:00:04]} Bxb2 {[%emt 0:01:58]} 15. Nxb2 {[%emt 0:01:28]} Qxd6 {[%emt 0:00:05]} 16. Nc4 {[%emt 0:01:06]} Qf6 {[%emt 0:00:56]} 17. Rc1 {[%emt 0:01:20]} Rd8 {[%emt 0:09:37]} 18. Bd3 {[%emt 0:03:10]} b5 {[%emt 0:01:14]} 19. Nd2 {[%emt 0:00:07]} c4 {[%emt 0:00:49]} 20. Bb1 {[%emt 0:01:13]} Bb7 {[%emt 0:07:34]} 21. e4 {[%emt 0:01:23]} Nd7 {[%emt 0:01:10]} 22. O-O {[%emt 0:01:35]} Ne5 {[%emt 0:01:17]} 23. Qe2 {[%emt 0:02:11]} Ng6 {[%emt 0:09:53]} 24. g3 {[%emt 0:05:19]} Bc8 {[%emt 0:02:12]} 25. Qe3 {[%emt 0:03:52]} Bh3 {[%emt 0:02:53]} 26. Nf3 {[%emt 0:06:39]} g4 {[%emt 0:07:18]} 27. Nd4 {[%emt 0:01:19]} Bxf1 {[%emt 0:00:14]} 28. Rxf1 {[%emt 0:00:05]} Ne5 {[%emt 0:00:24]} 29. Nf5 {[%emt 0:01:00]} Kh7 {[%emt 0:02:55]} 30. Kg2 {[%emt 0:00:32]} Qg5 {[%emt 0:01:24]} 31. Qc3 {[%emt 0:02:29]} Re8 {[%emt 0:06:54]} 32. Rh1 {[%emt 0:02:00]} a5 {[%emt 0:02:45]} 33. h3 {[%emt 0:00:44]} b4 {[%emt 0:01:40]} 34. Qd4 {[%emt 0:00:26]} h5 {[%emt 0:11:19]} 35. hxg4 {[%emt 0:00:22]} Qxg4 {[%emt 0:00:11]} 36. Qe3 {[%emt 0:00:31]} Qg6 {[%emt 0:01:33]} 37. Qe2 {[%emt 0:03:45]} Ng4 {[%emt 0:00:58]} 38. Qxc4 {[%emt 0:00:40]} Kg8 {[%emt 0:02:17]} 39. d6 {[%emt 0:00:53]} Qe6 {[%emt 0:01:16]} 40. Qd4 {[%emt 0:00:00]} Qe5 {[%emt 0:00:00]} 41. Qd2 {[%emt 0:02:05]} Re6 {[%emt 0:08:15]} 42. Rxh5 {[%emt 0:00:13]} Kf8 {[%emt 0:00:11]} 43. Qd5 {[%emt 0:02:40]} 1-0

[Event "EYCC Girls-U18 2019"]
[Site "Bratislava"]
[Date "2019.08.10"]
[Round "9.15"]
[White "Sibajeva, Marija"]
[Black "Represa Perez, Mireya"]
[Result "0-1"]
[ECO "B90"]
[WhiteElo "2031"]
[BlackElo "2017"]
[Annotator "NA"]
[PlyCount "68"]
[EventDate "2019.08.02"]
[EventType "swiss"]
[EventCountry "SVK"]
[SourceTitle "playchess.com"]
[Source "ChessBase"]
[SourceQuality "1"]
[TimeControl "40/5400+30:1800+30"]

1. e4 {[%emt 0:00:00]} c5 {[%emt 0:00:00]} 2. Nf3 {[%emt 0:00:00]} d6 {[%emt 0:00:00]} 3. d4 {[%emt 0:00:00]} Nf6 {[%emt 0:00:00]} 4. Nc3 {[%emt 0:00:17]} cxd4 {[%emt 0:00:02]} 5. Nxd4 {[%emt 0:00:06]} a6 {[%emt 0:00:05]} 6. h3 {[%emt 0:00:16]} e5 {[%emt 0:01:46]} 7. Nb3 {[%emt 0:00:10]} Be7 {[%emt 0:07:53]} 8. Bg5 {[%emt 0:09:35]} Be6 {[%emt 0:06:08]} 9. Qd3 {[%emt 0:01:33]} Nc6 {[%emt 0:03:27]} 10. Bxf6 {[%emt 0:12:26]} Bxf6 {[%emt 0:02:51]} 11. O-O-O {[%emt 0:01:41]} Be7 {[%emt 0:11:22]} 12. Nd5 {[%emt 0:08:26]} Bg5+ {[%emt 0:13:28]} 13. Kb1 {[%emt 0:00:42]} Rc8 {[%emt 0:01:23]} 14. c3 {[%emt 0:03:22]} O-O {[%emt 0:04:22]} 15. g4 {[%emt 0:13:13]} Bh4 {[%emt 0:03:01]} 16. Rh2 {[%emt 0:11:34]} a5 {[%emt 0:06:26]} 17. Qb5 {[%emt 0:03:12]} Ra8 {[%emt 0:18:28]} 18. Qxb7 {[%emt 0:07:43]} Ne7 {[%emt 0:03:58]} 19. Nxe7+ {[%emt 0:01:12]} Bxe7 {[%emt 0:00:41]} 20. Nd2 {[%emt 0:03:13]} Rb8 {[%emt 0:03:37]} 21. Qc6 {[%emt 0:02:13]} Rb6 {[%emt 0:01:54]} 22. Qa4 {[%emt 0:00:21]} Qb8 {[%emt 0:00:37]} 23. Qc2 {[%emt 0:01:08]} Rc8 {[%emt 0:02:16]} 24. Ka1 {[%emt 0:00:48]} a4 {[%emt 0:00:38]} 25. c4 {[%emt 0:02:36]} Qa7 {[%emt 0:01:29]} 26. Qc3 {[%emt 0:03:18]} Rcb8 {[%emt 0:01:00]} 27. Rb1 {[%emt 0:00:34]} Bg5 {[%emt 0:01:52]} 28. f3 {[%emt 0:02:25]} Rb4 {[%emt 0:00:56]} 29. a3 {[%emt 0:03:07]} R4b7 {[%emt 0:01:43]} 30. Re2 {[%emt 0:01:07]} Qc5 {[%emt 0:00:05]} 31. Ree1 {[%emt 0:01:28]} Bh4 {[%emt 0:00:51]} 32. Re2 {[%emt 0:04:17]} Bf2 {[%emt 0:00:25]} 33. Qc2 {[%emt 0:00:02]} Bd4 {[%emt 0:01:06]} 34. Qxa4 {[%emt 0:02:30]} Ra7 {[%emt 0:00:56]} 0-1